{"text_format":"1","workbook":"xlsx","n_sheets":4,"sheets":["Общая информация","Проведенные ОС","Участие в ОС","Лист2"],"not_rendered":{"charts":0,"images":17,"macros":1,"external_links":0,"defined_names":0,"comments":0,"pivot_tables":0},"unopened":[],"bounds":{"document_bytes":16777216,"sheet_cells":100000,"rows_first":2000,"rows_last":500,"rows_between":2000,"halvings":0,"cell_chars":16384,"cell_head_chars":4096},"cells_cut":0,"cells_raw":0,"read":"whole","date_system":"1900"}

{"sheet":"Общая информация","index":0,"n_rows":21,"n_cols":4,"rows_kept":21,"cut":false,"hidden":false,"merged":[[12,1,12,2]]}
[]
[null,"Наименование ОУ"]
[null,"Отчетный период",""]
[null,"Ответственный по направлению ВКС ",""]
[null,"Количество педагогов в ОУ","",{"$f":"IF(C5=\"\",0,--C5)","v":0}]
[null,"Количество обучающихся в ОУ","",{"$f":"IF(C6=\"\",0,--C6)","v":0}]
[null,"Обучено педагогов по направлению ВКС (курсы)","",0]
[null,"Обучено педагогов по направлению ВКС (внутрифирменное ПК)","",0]
[null,"Количество педагогов, учавствующих в организации и проведении событий на базе ВКС","",0]
[null,"Количество обучающихся, принявших участие в образовательных событиях на базе ВКС ","",0]
[]
[]
[null,"Показатели эффективности внедрения ВКС "]
[null,"Количественные"]
[null,"Доля педагогов, прошедших обучение по направлению ВКС",{"$f":"IF(D5<>0,(D7+D8)/D5,0)","v":0}]
[null,"Доля педагогов, учавствующих в организации и проведении событий на базе ВКС",{"$f":"IF(D5<>0,D9/D5,0)","v":0}]
[null,"Доля обучающихся ОУ, принявших участие в образовательных событиях на базе ВКС",{"$f":"IF(D6<>0,D10/D6,0)","v":0}]
[null,"Качественные"]
[null,"Баллов за организацию и проведение образовательных событий на базе ВКС",{"$f":"'Проведенные ОС'!W18","v":0}]
[null,"Баллов за участие в образовательных событиях, проводимых на базе ВКС",{"$f":"'Участие в ОС'!G18","v":0}]
[null,"Всего баллов",{"$f":"SUM(C19:C20)","v":0}]

{"sheet":"Проведенные ОС","index":1,"n_rows":18,"n_cols":23,"rows_kept":18,"cut":false,"hidden":false,"merged":[]}
[null,"Проведенные мероприятия",null,null,null,"Организованные и проведенные образовательные события"]
["№","Название мероприятия","Дата проведения","Платформа ВКС","Целевая аудитория","Уровень мероприятия","Серия уроков ","Ведущие, ФИО","Организаторы, ФИО",null,"Общее Число участников ","Ссылка на пресс-релиз на сайте ОУ  (если платформа не LiveSize)","Формы взаимодействия с удаленной аудиторией (через запятую)","Дидактическое обеспечение (через запятую)","ц.а","у.м","с.у","ч.у","ф.в","д.о",null,null,"Общий балл"]
[1,"","","","","","","","",{"$f":"IF(K3=\"\",0,--K3)","v":0},"",null,"","",{"$f":"IF(E3=\"родители\",2,IF(E3=\"обучающиеся\",3,IF(E3=\"педагоги\",1,0)))","v":0},{"$f":"IF(F3=\"внутришкольное\",1,IF(F3=\"районное\",2,IF(F3=\"городское\",3, IF(F3=\"региональное\",3,0))))","v":0},{"$f":"IF(G3=\"да\",2,0)","v":0},{"$f":"IF(J3<10,0,IF(J3<20,1,IF(J3<30,2,IF(J3<40,3,4))))","v":0},{"$f":"LEN(M3)-LEN(SUBSTITUTE(M3,\",\",\"\"))","v":0},{"$f":"LEN(N3)-LEN(SUBSTITUTE(N3,\",\",\"\"))","v":0},{"$f":"IF(M3<>\"\",1,0)","v":0},{"$f":"IF(N3<>\"\",1,0)","v":0},{"$f":"SUM(O3:V3)","v":0}]
[2,null,null,null,"",null,"",null,"",{"$f":"IF(K4=\"\",0,--K4)","v":0},"",null,"",null,0,0,0,0,0,0,0,0,{"$f":"SUM(O4:V4)","v":0}]
[3,null,null,null,"","","",null,null,0,"",null,null,null,0,0,0,0,0,0,0,0,0]
[4,null,null,null,"","","",null,null,0,"",null,null,null,0,0,0,0,0,0,0,0,0]
[5,null,null,null,null,"",null,null,null,0,"",null,null,null,0,0,0,0,0,0,0,0,0]
[6,null,null,null,"","",null,null,null,0,"",null,null,null,0,0,0,0,0,0,0,0,0]
[7,null,null,null,null,"",null,null,null,0,"",null,null,"",0,0,0,0,0,0,0,0,0]
[8,null,null,null,"","","",null,null,0,"",null,null,null,0,0,0,0,0,0,0,0,0]
[9,null,null,null,null,null,null,null,null,0,"",null,null,null,0,0,0,0,0,0,0,0,0]
[10,null,null,null,"",null,null,null,null,0,"",null,null,null,0,0,0,0,0,0,0,0,0]
[11,null,null,null,"","",null,null,null,0,"",null,null,null,0,0,0,0,0,0,0,0,0]
[12,null,null,null,null,null,null,null,null,0,"",null,null,null,0,0,0,0,0,0,0,0,0]
[13,null,null,null,null,null,null,null,null,0,"",null,null,null,0,0,0,0,0,0,0,0,0]
[14,null,null,null,null,null,null,null,null,0,"",null,null,null,0,0,0,0,0,0,0,0,0]
[15,null,null,null,null,"",null,null,null,0,"",null,null,null,0,0,0,0,0,0,0,0,0]
[null,null,null,null,null,null,null,null,null,null,null,null,null,null,null,null,null,null,null,null,null,null,{"$f":"SUM(W3:W17)","v":0}]

{"sheet":"Участие в ОС","index":2,"n_rows":18,"n_cols":7,"rows_kept":18,"cut":false,"hidden":false,"merged":[]}
[null,"Образовательные события, в которых приняли участие"]
["№","Название мероприятия","Дата проведения","Организаторы, ОУ","Число участников в аудитории ",null,"Общий балл"]
[1,null,null,null,"",{"$f":"IF(E3=\"\",0,--E3)","v":0},{"$f":"IF(F3<1,0,IF(F3<10,1,IF(F3<20,2,IF(F3<30,3,4))))","v":0}]
[2,null,null,null,"",{"$f":"IF(E4=\"\",0,--E4)","v":0},{"$f":"IF(F4<1,0,IF(F4<10,1,IF(F4<20,2,IF(F4<30,3,4))))","v":0}]
[3,null,null,null,"",0,0]
[4,null,null,null,"",0,0]
[5,null,null,null,null,0,0]
[6,null,null,null,"",0,0]
[7,null,null,null,null,0,0]
[8,null,null,null,null,0,0]
[9,null,null,null,null,0,0]
[10,null,null,null,null,0,0]
[11,null,null,null,null,0,0]
[12,null,null,null,null,0,0]
[13,null,null,null,null,{"$f":"IF(E15=\"\",0,--E15)","v":0},0]
[14,null,null,null,null,0,0]
[15,null,null,null,null,0,0]
[null,null,null,null,null,null,{"$f":"SUM(G3:G17)","v":0}]

{"sheet":"Лист2","index":3,"n_rows":5,"n_cols":4,"rows_kept":5,"cut":false,"hidden":true,"merged":[]}
[]
["обучающиеся","внутришкольное","да","LiveSize"]
["родители","районное","нет","Smart Brigit"]
["педагоги","городское",null,"Другое"]
[null,"региональное"]